bitfinex/quotes_BTCUSD_20240611
["timestamp","ask_amount","ask_price","bid_price","bid_amount"]
[1718111733401,0.17464195,67181.0,67180.0,0.000946]
[1718111733617,0.19464195,67181.0,67180.0,0.000946]
[1718111734320,0.19464195,67181.0,67176.0,0.1525]
[1718111734321,0.02,67179.0,67176.0,0.1525]
[1718111734529,0.148857,67179.0,67176.0,0.1525]
[1718111734740,0.01172399,67178.0,67177.0,0.07215996]
[1718111735164,0.016,67181.0,67176.0,0.1525]
[1718111735165,0.011,67181.0,67176.0,0.1525]
[1718111735381,0.01172399,67178.0,67176.0,0.1525]
[1718111735593,0.148851,67181.0,67176.0,0.1525]
[1718111735810,0.01172399,67177.0,67176.0,0.1525]
[1718111735951,0.006,67179.0,67176.0,0.1525]
[1718111736165,0.01172399,67177.0,67176.0,0.1525]
[1718111736772,0.006,67178.0,67176.0,0.1525]
[1718111736986,0.01172399,67177.0,67176.0,0.1525]
[1718111738709,0.01171782,67177.0,67176.0,0.1525]
[1718111739141,0.148851,67181.0,67176.0,0.1525]
[1718111739340,0.01778001,67177.0,67176.0,0.1525]
[1718111739544,0.006,67177.0,67176.0,0.1525]
[1718111739754,0.01778196,67177.0,67176.0,0.1525]
[1718111739959,0.006,67177.0,67176.0,0.1525]
[1718111740213,0.01778196,67177.0,67176.0,0.1525]
[1718111740416,0.006,67177.0,67176.0,0.29236206]
[1718111740613,0.01778196,67177.0,67176.0,0.29236206]
[1718111740827,0.148851,67181.0,67176.0,0.29236206]
[1718111741036,0.01178196,67177.0,67176.0,0.1525]
[1718111741242,0.148851,67181.0,67176.0,0.29232786]
[1718111741479,0.01178196,67177.0,67176.0,0.1525]
[1718111741702,0.01178196,67177.0,67176.0,0.29232991]
[1718111741915,0.148851,67181.0,67176.0,0.29232991]
[1718111742145,0.148851,67181.0,67177.0,0.13982991]
[1718111742352,0.154851,67181.0,67177.0,0.13982991]
[1718111742563,0.148851,67181.0,67177.0,0.13982991]
[1718111743766,0.155851,67181.0,67177.0,0.13982991]
[1718111744115,0.155851,67181.0,67178.0,0.2429]
[1718111744116,0.007,67181.0,67178.0,0.2429]
[1718111744318,0.007,67181.0,67179.0,0.13982991]
[1718111745022,0.008,67181.0,67179.0,0.13982991]
[1718111745266,0.001,67181.0,67179.0,0.13982991]
[1718111745697,0.01,67181.0,67179.0,0.13982991]
[1718111746129,0.001,67181.0,67179.0,0.13982991]
[1718111746331,0.01,67181.0,67180.0,0.13982991]
[1718111746533,0.01,67181.0,67179.0,0.13982991]
[1718111746786,0.013,67181.0,67179.0,0.13982991]
[1718111747413,0.01,67181.0,67179.0,0.13982991]
[1718111747622,0.015,67181.0,67179.0,0.13982991]
[1718111748281,0.01,67181.0,67179.0,0.13982991]
[1718111749766,0.013,67181.0,67179.0,0.13982991]
[1718111753786,0.01177556,67180.0,67179.0,0.13982991]
[1718111755630,0.01177556,67180.0,67179.0,0.14366149]
[1718111756038,0.01,67180.0,67179.0,0.14366149]
[1718111756211,0.02177556,67180.0,67179.0,0.14366149]
[1718111757203,0.02477556,67180.0,67179.0,0.45022145]
[1718111757440,0.02477556,67180.0,67179.0,0.7590376]
[1718111757661,0.013,67180.0,67179.0,0.7590376]
[1718111758137,0.01,67180.0,67179.0,0.7590376]
[1718111758630,0.011,67180.0,67179.0,0.7650376]
[1718111758854,0.001,67180.0,67179.0,0.7650376]
[1718111759818,0.001,67180.0,67179.0,0.93382604]
[1718111760049,0.001,67180.0,67179.0,1.07814597]
[1718111760528,0.001,67180.0,67179.0,1.07810992]
[1718111760955,0.001,67180.0,67179.0,1.07905592]
[1718111761372,0.00086,67192.0,67184.0,0.01993244]
[1718111761593,0.00086,67192.0,67185.0,0.53064159]
[1718111761805,0.00086,67192.0,67188.0,0.0808]
[1718111762024,0.00086,67192.0,67189.0,0.60924159]
[1718111762235,0.00086,67192.0,67191.0,0.384129]
[1718111762451,0.00086,67192.0,67191.0,0.85650303]
[1718111762703,0.00086,67192.0,67191.0,0.83657059]
[1718111762954,0.00086,67192.0,67191.0,0.85646346]
[1718111763558,0.00086,67192.0,67191.0,1.00078044]
[1718111763764,0.00186,67192.0,67191.0,0.982848]
[1718111763965,0.00186,67192.0,67191.0,1.00278044]
[1718111764760,0.00186,67192.0,67191.0,1.00678044]
[1718111765251,0.00857002,67217.0,67207.0,0.01993244]
[1718111765469,0.00857002,67217.0,67210.0,0.234]
[1718111765697,0.01003781,67216.0,67210.0,0.234]
[1718111765908,0.00857002,67217.0,67210.0,0.234]
[1718111766517,0.01757002,67217.0,67210.0,0.234]
[1718111766763,0.00857002,67217.0,67215.0,0.148776]
[1718111766980,0.00857002,67217.0,67215.0,0.143676]
[1718111768793,0.00857002,67217.0,67216.0,0.1513]
[1718111769419,0.01157002,67217.0,67216.0,0.17123244]
[1718111769779,0.01157002,67217.0,67216.0,0.1513]
[1718111769780,0.00857002,67217.0,67216.0,0.1513]
[1718111769986,0.00857002,67217.0,67216.0,0.17123244]
[1718111770232,0.01257002,67217.0,67216.0,0.1513]
[1718111771518,0.01257002,67217.0,67216.0,0.1523]
[1718111772837,0.01257002,67217.0,67216.0,0.17223244]
[1718111773260,0.01257002,67217.0,67216.0,0.1523]
[1718111773893,0.01257002,67217.0,67216.0,0.1513]
[1718111773894,0.00857002,67217.0,67216.0,0.1513]
[1718111774357,0.00857002,67217.0,67216.0,0.1573]
[1718111775833,0.00857002,67217.0,67216.0,0.17532256]
[1718111777260,0.00857002,67217.0,67216.0,0.32409656]
[1718111780201,0.00857002,67217.0,67216.0,0.006]
[1718111780404,0.05439665,67217.0,67216.0,0.006]
[1718111780610,0.2769286,67217.0,67216.0,0.006]
[1718111780810,0.26918127,67217.0,67216.0,0.006]
[1718111781053,0.24918127,67217.0,67216.0,0.006]
[1718111781248,0.26918127,67217.0,67216.0,0.006]
[1718111781487,0.24918127,67217.0,67216.0,0.002]
[1718111781700,0.01921027,67217.0,67208.0,0.01993244]
[1718111781905,0.01921027,67217.0,67216.0,0.003]
[1718111782066,0.01157002,67217.0,67216.0,0.382974]
[1718111782298,0.01157002,67217.0,67216.0,0.379974]
[1718111782497,0.01157002,67217.0,67216.0,0.39990644]
[1718111783606,0.01157002,67217.0,67216.0,0.54422637]
[1718111783607,0.00857002,67217.0,67216.0,0.54422637]
[1718111783797,0.00857002,67217.0,67216.0,0.54522637]
[1718111784008,0.01457002,67217.0,67216.0,0.54522637]
[1718111784758,0.00857002,67217.0,67216.0,0.54422637]
[1718111784935,0.00857002,67217.0,67216.0,0.54722637]
[1718111785138,0.01157002,67217.0,67216.0,0.54722637]
[1718111785348,0.00857002,67217.0,67216.0,0.54422637]
[1718111785555,0.00017959,67224.0,67223.0,0.01993244]
[1718111785770,0.00017959,67224.0,67223.0,0.55451037]
[1718111786043,0.00017959,67224.0,67223.0,1.03531037]
[1718111786254,0.009416,67230.0,67229.0,0.40257744]
[1718111786463,0.009416,67230.0,67229.0,0.54689737]
[1718111787496,0.010416,67230.0,67229.0,0.55589737]
[1718111788312,0.010416,67230.0,67229.0,0.55989737]
[1718111788723,0.010416,67230.0,67229.0,0.65989737]
[1718111789974,0.010416,67230.0,67229.0,0.63996493]
[1718111792199,0.010416,67230.0,67229.0,0.113]
[1718111792405,0.010416,67230.0,67229.0,0.013]
[1718111793047,0.010416,67230.0,67229.0,0.161745]
[1718111793462,0.010416,67230.0,67229.0,0.30606493]
[1718111793717,0.010416,67230.0,67229.0,0.32599737]
[1718111794186,0.010416,67230.0,67229.0,0.40499737]
[1718111794611,0.010416,67230.0,67229.0,0.56819737]
[1718111794842,0.010416,67230.0,67229.0,0.56719737]
[1718111795267,0.010416,67230.0,67229.0,0.5848991]
[1718111796131,0.010416,67230.0,67229.0,1.2053891]
[1718111796349,0.00017953,67245.0,67244.0,0.40564444]
[1718111796572,0.00017953,67245.0,67244.0,0.90292433]
[1718111796786,0.00017953,67245.0,67244.0,1.40292433]
[1718111797470,0.00017953,67245.0,67244.0,1.65387095]
[1718111797687,0.00856,67248.0,67247.0,0.40633744]
[1718111797897,0.00856,67248.0,67247.0,0.55065737]
[1718111798530,0.00856,67248.0,67247.0,0.65065737]
[1718111798778,0.00856,67248.0,67247.0,0.95065737]
[1718111799002,0.00856,67248.0,67247.0,0.75065737]
[1718111799425,0.00856,67248.0,67247.0,0.65065737]
[1718111799636,0.00856,67248.0,67247.0,0.75065737]
[1718111799855,0.00856,67248.0,67247.0,0.93145737]
[1718111800067,0.00856,67248.0,67247.0,0.94045737]
[1718111800732,0.00856,67248.0,67247.0,0.94345737]
[1718111800959,0.00856,67248.0,67247.0,0.92352493]
[1718111801469,0.00856,67248.0,67247.0,0.94345737]
[1718111801891,0.00856,67248.0,67247.0,0.76265737]
[1718111802132,0.00856,67248.0,67247.0,0.94245737]
[1718111802812,0.00856,67248.0,67247.0,0.76165737]
[1718111803470,0.00856,67248.0,67247.0,0.74965737]
[1718111803681,0.00856,67248.0,67247.0,0.75965737]
[1718111803927,0.00856,67248.0,67247.0,0.76365737]
[1718111804359,0.00856,67248.0,67247.0,0.64372493]
[1718111804568,0.00856,67248.0,67247.0,0.74372493]
[1718111805395,0.00856,67248.0,67247.0,0.114]
[1718111805602,0.00856,67248.0,67247.0,0.162705]
[1718111805815,0.00756,67248.0,67247.0,0.58285737]
[1718111806032,0.00756,67248.0,67247.0,0.65985737]
[1718111807537,0.00756,67248.0,67247.0,0.63992493]
[1718111807975,0.00756,67248.0,67247.0,0.65985737]
[1718111808205,0.00756,67248.0,67247.0,0.75985737]
[1718111808426,0.00756,67248.0,67247.0,0.78285737]
[1718111808842,0.00113481,67248.0,67247.0,0.78285737]
[1718111809835,0.00113481,67248.0,67247.0,0.98285737]
[1718111810090,0.00113481,67248.0,67247.0,0.78285737]
[1718111810848,0.01940501,67250.0,67247.0,0.78285737]
[1718111810849,0.01940501,67250.0,67249.0,0.36863344]
[1718111811101,0.01940501,67250.0,67249.0,0.85435337]
[1718111811346,0.01940501,67250.0,67249.0,0.65435337]
[1718111812159,0.01940501,67250.0,67249.0,0.63442093]
[1718111812398,0.01940501,67250.0,67249.0,0.56822093]
[1718111812661,0.01940501,67250.0,67249.0,0.58815337]
[1718111813181,0.01940501,67250.0,67249.0,0.59215337]
[1718111813707,0.01940501,67250.0,67249.0,0.57222093]
[1718111813958,0.01940501,67250.0,67249.0,0.59215337]
[1718111814488,0.01940501,67250.0,67249.0,0.57222093]
[1718111816102,0.01940501,67250.0,67249.0,0.40602093]
[1718111818799,0.1808,67272.0,67259.0,0.1]
[1718111819046,0.15175397,67271.0,67260.0,0.07215996]
[1718111819561,0.15175397,67271.0,67259.0,0.3]
[1718111819813,0.15175397,67271.0,67261.0,0.2]
[1718111820388,0.148665,67265.0,67259.0,0.303]
[1718111820673,0.148665,67265.0,67259.0,0.3]
[1718111821446,0.148665,67265.0,67259.0,0.1]
[1718111821699,0.007434,67264.0,67256.0,0.2]
[1718111821947,0.14431993,67264.0,67255.0,0.1]
[1718111822170,0.14431993,67264.0,67250.0,0.1]
[1718111822171,0.1808,67263.0,67250.0,0.1]
[1718111822395,0.15175514,67262.0,67249.0,0.1]
[1718111822625,0.14431993,67262.0,67249.0,0.1]
[1718111822845,0.148686,67256.0,67253.0,0.2]
[1718111823067,0.47610192,67267.0,67256.0,0.2]
[1718111823322,0.14431993,67266.0,67255.0,0.37215996]
[1718111823603,0.148671,67263.0,67258.0,0.2]
[1718111823833,0.29299093,67263.0,67260.0,0.2]
[1718111824292,0.29299093,67263.0,67261.0,0.2]
[1718111824517,0.29299093,67263.0,67260.0,0.2]
[1718111824767,0.29299093,67263.0,67257.0,0.2]
[1718111825003,0.29699093,67263.0,67258.0,0.001]
[1718111825231,0.29299093,67263.0,67257.0,0.2]
[1718111825695,0.005,67263.0,67261.0,0.001]
[1718111826175,0.148656,67270.0,67264.0,0.2]
[1718111826417,0.148656,67270.0,67262.0,0.1]
[1718111826418,0.001,67263.0,67262.0,0.1]
[1718111826876,0.00743361,67269.0,67262.0,0.1]
[1718111827113,0.00743361,67269.0,67255.0,0.17215996]
[1718111827114,0.14431993,67268.0,67255.0,0.17215996]
[1718111827352,0.14967,67263.0,67257.0,0.1]
[1718111827573,0.15367,67263.0,67258.0,0.201]
[1718111827799,0.14867,67263.0,67258.0,0.2]
[1718111828034,0.14867,67263.0,67257.0,0.1]
[1718111828035,0.00986834,67262.0,67257.0,0.1]
[1718111828943,0.00743425,67261.0,67257.0,0.001]
[1718111829158,0.01730259,67262.0,67255.0,0.1]
[1718111829375,0.148675,67261.0,67257.0,0.001]
[1718111829586,0.15854334,67261.0,67257.0,0.001]
[1718111830244,0.148675,67261.0,67257.0,0.001]
[1718111830900,0.148675,67261.0,67255.0,0.1]
[1718111831129,0.148681,67258.0,67249.0,0.3]
[1718111831538,0.148681,67258.0,67249.0,0.1]
[1718111831539,0.148689,67255.0,67249.0,0.1]
[1718111832192,0.00986834,67254.0,67249.0,0.1]
[1718111832404,0.00986834,67254.0,67250.0,0.2]
[1718111832628,0.00986834,67254.0,67253.0,0.37215996]
[1718111832845,0.18871737,67274.0,67257.0,0.2]
[1718111832846,0.148668,67264.0,67257.0,0.2]
[1718111833054,0.148668,67264.0,67260.0,0.2]
[1718111833259,0.1,67271.0,67256.0,0.1]
[1718111833473,0.15175426,67270.0,67252.0,0.1]
[1718111833701,0.07712377,67269.0,67252.0,0.3]
[1718111833903,0.22887849,67268.0,67252.0,0.3]
[1718111834110,0.14868,67259.0,67252.0,0.3]
[1718111834315,0.14868,67259.0,67252.0,0.1]
[1718111834524,0.14868,67259.0,67252.0,0.3]
[1718111834949,0.148681,67258.0,67252.0,0.3]
[1718111835565,0.148681,67258.0,67252.0,0.1]
[1718111836712,0.32511993,67268.0,67249.0,0.1]
[1718111836935,0.08456256,67267.0,67252.0,0.004]
[1718111837158,0.22144759,67266.0,67252.0,0.004]
[1718111837347,0.00743513,67265.0,67252.0,0.004]
[1718111837583,0.22144759,67264.0,67252.0,0.004]
[1718111837797,0.148687,67256.0,67249.0,0.3]
[1718111838008,0.04444608,67268.0,67253.0,0.1]
[1718111838227,0.22888155,67267.0,67249.0,0.104]
[1718111838423,0.148687,67256.0,67249.0,0.104]
[1718111839304,0.14431993,67255.0,67249.0,0.004]
[1718111839524,0.0074357,67254.0,67249.0,0.004]
[1718111839736,0.0074357,67254.0,67243.0,0.5718]
[1718111839737,0.148705,67248.0,67243.0,0.5718]
[1718111839976,0.148705,67248.0,67240.0,0.1]
[1718111839977,0.148705,67247.0,67240.0,0.1]
[1718111840402,0.00984726,67246.0,67240.0,0.1]
[1718111840904,0.148705,67247.0,67240.0,0.1]
[1718111841323,0.14431993,67248.0,67239.0,0.1]
[1718111841558,0.14431993,67248.0,67243.0,0.004]
[1718111842273,0.148709,67245.0,67243.0,0.004]
[1718111842499,0.148709,67245.0,67244.0,0.07215996]
[1718111842941,0.00922678,67245.0,67244.0,0.3920924]
[1718111843150,0.00922678,67245.0,67244.0,0.6247924]
[1718111843359,0.06678827,67261.0,67244.0,0.6247924]
[1718111843360,0.148686,67256.0,67250.0,0.2]
[1718111843579,0.148686,67256.0,67252.0,0.2]
[1718111843791,0.00917612,67255.0,67254.0,0.1]
[1718111844000,0.00917612,67255.0,67249.0,0.3]
[1718111844234,0.00743452,67262.0,67251.0,0.2]
[1718111844441,0.148678,67260.0,67255.0,0.1]
[1718111844644,0.001,67256.0,67254.0,0.1]
[1718111844871,0.001,67256.0,67253.0,0.2]
[1718111845080,0.006,67256.0,67253.0,0.2]
[1718111845290,0.00743448,67259.0,67253.0,0.2]
[1718111845718,0.005,67260.0,67255.0,0.001]
[1718111845934,0.00743476,67259.0,67253.0,0.2]
[1718111846146,0.00743476,67259.0,67252.0,0.3]
[1718111846359,0.005,67256.0,67253.0,0.001]
[1718111846579,0.005,67256.0,67255.0,0.5463]
[1718111847905,0.005,67256.0,67253.0,0.002]
[1718111848326,0.00743504,67258.0,67253.0,0.001]
[1718111848531,0.148689,67255.0,67253.0,0.001]
[1718111848769,0.148689,67255.0,67251.0,0.1]
[1718111848989,0.148689,67255.0,67252.0,0.07215996]
[1718111849875,0.153689,67255.0,67252.0,0.07215996]
[1718111850101,0.00925559,67254.0,67250.0,0.1]
[1718111850328,0.15794659,67254.0,67250.0,0.1]
[1718111850543,0.148692,67253.0,67249.0,0.1]
[1718111851197,0.148692,67253.0,67252.0,0.002]
[1718111851682,0.148692,67253.0,67249.0,0.1]
[1718111852116,0.148692,67253.0,67249.0,0.104]
[1718111853384,0.148692,67253.0,67249.0,0.1]
[1718111853824,0.148692,67253.0,67252.0,0.002]
[1718111854272,0.148692,67253.0,67249.0,0.1]
[1718111854486,0.148692,67253.0,67249.0,0.3]
[1718111854702,0.148692,67253.0,67249.0,0.304]
[1718111855433,0.148692,67253.0,67250.0,0.0799]
[1718111855837,0.152692,67253.0,67250.0,0.0799]
[1718111856180,0.004,67253.0,67252.0,0.27215996]
[1718111856785,0.148684,67257.0,67253.0,0.2]
[1718111857613,0.148684,67257.0,67252.0,0.27215996]
[1718111858059,0.148684,67257.0,67254.0,0.2]
[1718111858490,0.148684,67257.0,67254.0,0.362]
[1718111860321,0.153684,67257.0,67254.0,0.363]
[1718111860535,0.0092307,67256.0,67254.0,0.363]
[1718111860752,0.0092307,67256.0,67254.0,0.163935]
[1718111861605,0.0092307,67256.0,67255.0,0.2]
[1718111862342,0.0092307,67256.0,67254.0,0.162935]
[1718111863003,0.0142307,67256.0,67254.0,0.363935]
[1718111863241,0.0142307,67256.0,67255.0,0.2]
[1718111863677,0.0142307,67256.0,67254.0,0.163935]
[1718111863901,0.0152307,67256.0,67254.0,0.363935]
[1718111864118,0.0152307,67256.0,67254.0,0.163935]
[1718111864333,0.0102307,67256.0,67254.0,0.000935]
[1718111864717,0.0142307,67256.0,67255.0,0.001]
[1718111866184,0.1579157,67256.0,67254.0,0.000935]
[1718111866688,0.1579157,67256.0,67254.0,0.001935]
[1718111866689,0.1629157,67256.0,67254.0,0.001935]
[1718111866908,0.1589157,67256.0,67254.0,0.000935]
[1718111867317,0.1639157,67256.0,67255.0,0.001]
[1718111867478,0.2361157,67256.0,67254.0,0.000935]
[1718111867658,0.2311157,67256.0,67254.0,0.000935]
[1718111867861,0.2361157,67256.0,67254.0,0.001935]
[1718111868870,0.2351157,67256.0,67254.0,0.001935]
[1718111869254,0.2301157,67256.0,67254.0,0.000935]
[1718111869689,0.2351157,67256.0,67255.0,0.001]
[1718111869897,0.2301157,67256.0,67254.0,0.000935]
[1718111870325,0.2351157,67256.0,67254.0,0.001935]
[1718111871795,0.225885,67256.0,67254.0,0.001935]
[1718111872291,0.00923418,67255.0,67254.0,0.001935]
[1718111872511,0.15792118,67255.0,67254.0,0.001935]
[1718111873548,0.15792118,67255.0,67254.0,0.000935]
[1718111873952,0.16292118,67255.0,67254.0,0.001935]
[1718111880866,0.153687,67255.0,67254.0,0.001935]
[1718111881282,0.16289682,67255.0,67254.0,0.001935]
[1718111883310,0.01420982,67255.0,67254.0,0.4716274]
[1718111883570,0.005,67255.0,67254.0,0.379535]
[1718111884257,0.005,67255.0,67254.0,0.001935]
[1718111884493,0.005,67255.0,67254.0,0.201935]
[1718111884940,0.01421667,67255.0,67254.0,0.201935]
[1718111885160,0.005,67255.0,67254.0,0.201935]
[1718111885440,0.01421667,67255.0,67254.0,0.201935]
[1718111885670,0.01421667,67255.0,67254.0,0.52088822]
[1718111886073,0.01421667,67255.0,67254.0,0.32088822]
[1718111886290,0.005,67255.0,67254.0,0.52088822]
[1718111886504,0.005,67255.0,67254.0,0.32088822]
[1718111887598,0.005,67255.0,67254.0,0.15618822]
[1718111889530,0.01420613,67255.0,67254.0,0.15618822]
[1718111892088,0.01420613,67255.0,67254.0,0.35618822]
[1718111892539,0.01420613,67255.0,67254.0,0.15618822]
[1718111892764,0.01420613,67255.0,67254.0,0.35618822]
[1718111894181,0.04458331,67260.0,67255.0,0.2]
[1718111894387,0.14431993,67259.0,67256.0,0.15425322]
[1718111894802,0.148681,67258.0,67257.0,0.15425322]
[1718111897046,0.001,67260.0,67259.0,0.2]
[1718111897278,0.19325431,67263.0,67261.0,0.2]
[1718111897499,0.19328149,67263.0,67260.0,0.2]
[1718111897718,0.19328149,67263.0,67259.0,0.31614473]
[1718111897719,0.148671,67263.0,67259.0,0.31614473]
[1718111897938,0.148671,67263.0,67262.0,0.15424473]
[1718111900208,0.149671,67263.0,67262.0,0.15524473]
[1718111900855,0.149671,67263.0,67262.0,0.15624473]
[1718111902422,0.19428149,67263.0,67262.0,0.15624473]
[1718111903075,0.26648149,67263.0,67262.0,0.15624473]
[1718111903495,0.221871,67263.0,67262.0,0.15624473]
[1718111904649,0.36619093,67263.0,67262.0,0.15624473]
[1718111904860,0.51022943,67263.0,67262.0,0.15624473]
[1718111905090,0.4433137,67263.0,67262.0,0.15624473]
[1718111906716,0.44331753,67263.0,67262.0,0.15624473]
[1718111907164,0.44331766,67263.0,67262.0,0.15624473]
[1718111908250,1.3011254,67263.0,67262.0,0.15624473]
[1718111908593,1.3011254,67263.0,67262.0,0.002]
[1718111908594,1.53226297,67263.0,67262.0,0.002]
[1718111908758,1.6323183,67263.0,67262.0,0.002]
[1718111908973,1.77730041,67263.0,67262.0,0.002]
[1718111909193,1.93380041,67263.0,67262.0,0.002]
[1718111909411,1.92164053,67263.0,67262.0,0.001]
[1718111909639,0.446062,67255.0,67254.0,0.000935]
[1718111909847,0.66258193,67255.0,67254.0,0.000935]
[1718111910025,1.14489066,67255.0,67254.0,0.000935]
[1718111910274,1.23405919,67255.0,67254.0,0.000935]
[1718111910505,1.44226566,67255.0,67254.0,0.000935]
[1718111910719,1.54226566,67255.0,67254.0,0.000935]
[1718111910933,1.65375452,67255.0,67254.0,0.000935]
[1718111911375,1.65375452,67255.0,67254.0,0.001935]
[1718111911376,1.54226566,67255.0,67254.0,0.001935]
[1718111911600,1.54326566,67255.0,67254.0,0.002935]
[1718111911826,1.81125452,67255.0,67254.0,0.002935]
[1718111912056,1.69976566,67255.0,67254.0,0.002935]
[1718111913365,1.81113663,67255.0,67254.0,0.002935]
[1718111915269,1.69976566,67255.0,67254.0,0.002935]
[1718111915900,1.69980139,67255.0,67254.0,0.002935]
[1718111916334,1.78884426,67255.0,67254.0,0.002935]
[1718111916559,1.73623806,67255.0,67254.0,0.002935]
[1718111917378,1.66403806,67255.0,67254.0,0.002935]
[1718111917582,1.73623806,67255.0,67254.0,0.002935]
[1718111918577,1.64719559,67255.0,67254.0,0.002935]
[1718111918815,1.79151552,67255.0,67254.0,0.002935]
[1718111919242,1.79152398,67255.0,67254.0,0.002935]
[1718111919416,1.46192245,67255.0,67254.0,0.002935]
[1718111920420,1.31760252,67255.0,67254.0,0.002935]
[1718111921267,1.73619614,67255.0,67254.0,0.002935]
[1718111921701,1.75397955,67255.0,67254.0,0.002935]
[1718111921953,1.66498874,67255.0,67254.0,0.002935]
[1718111922365,1.33538593,67255.0,67254.0,0.002935]
[1718111922802,1.47970586,67255.0,67254.0,0.002935]
[1718111923374,1.54643071,67255.0,67254.0,0.002935]
[1718111924310,1.47423071,67255.0,67254.0,0.002935]
[1718111924508,1.54643071,67255.0,67254.0,0.002935]
[1718111924729,1.40211078,67255.0,67254.0,0.002935]
[1718111926431,1.33438593,67255.0,67254.0,0.002935]
[1718111929127,1.3788569,67255.0,67254.0,0.002935]
[1718111929332,1.40111078,67255.0,67254.0,0.002935]
[1718111929705,1.33438593,67255.0,67254.0,0.002935]
[1718111929908,1.40111078,67255.0,67254.0,0.002935]
[1718111930325,1.33438593,67255.0,67254.0,0.002935]
[1718111930673,1.39209574,67255.0,67254.0,0.002935]
[1718111931050,1.32888715,67255.0,67254.0,0.002935]
[1718111931250,1.40108715,67255.0,67254.0,0.002935]
[1718111931461,1.37885069,67255.0,67254.0,0.002935]
[1718111931743,1.33438593,67255.0,67254.0,0.002935]
[1718111932544,1.26218593,67255.0,67254.0,0.002935]
[1718111932757,1.33438593,67255.0,67254.0,0.002935]
[1718111933014,1.33438729,67255.0,67254.0,0.002935]
[1718111935354,1.47870722,67255.0,67254.0,0.002935]
[1718111935943,1.33438729,67255.0,67254.0,0.002935]
[1718111937884,1.34554859,67255.0,67254.0,0.002935]
[1718111938303,1.81599545,67255.0,67254.0,0.002935]
[1718111938943,1.72700464,67255.0,67254.0,0.002935]
[1718111939422,1.40108291,67255.0,67254.0,0.002935]
[1718111939628,1.54540284,67255.0,67254.0,0.002935]
[1718111940036,1.47320284,67255.0,67254.0,0.002935]
[1718111940149,1.54540284,67255.0,67254.0,0.002935]
[1718111940792,1.40108291,67255.0,67254.0,0.002935]
[1718111940998,1.46427725,67255.0,67254.0,0.002935]
[1718111941215,1.39730026,67255.0,67254.0,0.002935]
[1718111941657,1.4010873,67255.0,67254.0,0.002935]
[1718111942278,0.148727,67238.0,67228.0,0.16894527]
[1718111942483,0.148727,67238.0,67228.0,0.14687657]
[1718111942484,0.14431993,67237.0,67228.0,0.14687657]
[1718111942690,0.14431993,67237.0,67228.0,0.0220687]
[1718111942909,0.14431993,67237.0,67228.0,0.02205645]
[1718111943306,0.14431993,67237.0,67228.0,0.02705645]
[1718111943945,0.14531993,67237.0,67228.0,0.016]
[1718111945057,0.29404693,67237.0,67228.0,0.016]
[1718111945290,0.29404693,67237.0,67229.0,0.2336]
[1718111945523,0.29404693,67237.0,67230.0,0.075]
[1718111945729,0.29404693,67237.0,67231.0,0.1607]
[1718111945967,0.29404693,67237.0,67233.0,0.1607]
[1718111946205,0.29404693,67237.0,67235.0,0.1567]
[1718111946443,0.29404693,67237.0,67236.0,0.2386]
[1718111946948,0.29304693,67237.0,67236.0,0.2386]
[1718111947197,0.29404693,67237.0,67236.0,0.2386]
[1718111947437,0.29304693,67237.0,67236.0,0.2386]
[1718111947945,0.29304693,67237.0,67236.0,0.2416]
[1718111949217,0.29304693,67237.0,67236.0,0.2466]
[1718111952654,0.02,67232.0,67219.0,0.17215996]
[1718111952940,0.04455071,67244.0,67226.0,0.07215996]
[1718111952941,0.01,67244.0,67226.0,0.07215996]
[1718111953208,0.09714748,67243.0,67236.0,0.0722]
[1718111953459,0.19325471,67248.0,67236.0,0.0722]
[1718111953460,0.02,67241.0,67236.0,0.0722]
[1718111954308,0.02,67243.0,67236.0,0.003]
[1718111954542,0.02,67242.0,67236.0,0.005]
[1718111954812,0.02,67242.0,67236.0,0.008]
[1718111955089,0.220905,67247.0,67236.0,0.008]
[1718111955090,0.01982105,67243.0,67236.0,0.008]
[1718111955651,0.14431993,67248.0,67237.0,0.1537]
[1718111955652,0.01982105,67248.0,67237.0,0.1537]
[1718111955941,0.24119855,67263.0,67249.0,0.1537]
[1718111955942,0.04455071,67253.0,67249.0,0.1537]
[1718111956217,0.00086,67256.0,67250.0,0.0757]
[1718111956496,0.00086,67256.0,67251.0,0.164]
[1718111956772,0.00086,67256.0,67252.0,0.0757]
[1718111957121,0.00086,67256.0,67253.0,0.164]
[1718111957336,0.00086,67256.0,67255.0,0.164]
[1718111957552,0.02068105,67256.0,67255.0,0.2397]
[1718111957762,0.03068105,67256.0,67255.0,0.2397]
[1718111957938,0.02068105,67256.0,67255.0,0.2397]
[1718111958414,0.02768105,67256.0,67255.0,0.2397]
[1718111958635,0.02068105,67256.0,67255.0,0.2397]
[1718111959073,0.03568105,67256.0,67255.0,0.2407]
[1718111959500,0.02968105,67256.0,67255.0,0.2407]
[1718111959931,0.03368105,67256.0,67255.0,0.2407]
[1718111961029,0.01386,67256.0,67255.0,0.2407]
[1718111961894,0.01386,67256.0,67245.0,0.02204876]
[1718111961895,0.01982105,67254.0,67233.0,0.59577166]
[1718111962131,0.01982105,67246.0,67245.0,0.0006035]
[1718111962360,0.15175434,67253.0,67242.0,0.0722]
[1718111962361,0.148703,67249.0,67242.0,0.0722]
[1718111962585,0.14431993,67248.0,67242.0,0.0722]
[1718111963029,0.14431993,67248.0,67245.0,0.0722]
[1718111963695,0.01982105,67252.0,67245.0,0.0722]
[1718111963919,0.01982105,67254.0,67245.0,0.0722]
[1718111964149,0.14431993,67253.0,67247.0,0.0722]
[1718111964573,0.01982105,67252.0,67247.0,0.0722]
[1718111964796,0.14431993,67253.0,67247.0,0.0722]
[1718111965011,0.14431993,67253.0,67248.0,0.2403]
[1718111965661,0.01982105,67252.0,67248.0,0.2403]
[1718111965928,0.14431993,67253.0,67248.0,0.2403]